Cogmind - Beta 10.2 @@@ ROGUE MODE // 2021.01.05 @ 07:45:00 Player: Wyvric Result: Assimilated 0b10! Performance ------------- Evolutions (9) 4500 Regions Visited (30) 6000 Robots Destroyed (352) 1760 Value Destroyed (19394) 19394 Prototype IDs (14) 280 Alien Tech Used (2) 400 Bonus (18859) 18859 TOTAL SCORE: 51193 Bonus ------- High Alert Combat Kills 818 Follower Combat Kills 2455 Entered Garrisons 1800 Used RIF Installer 4500 Met R17 at Cetus 500 Destroyed MAIN.C Guards 500 Met MAIN.C 5000 Used 0b10 Conduit 2000 Win 3000 Friendly Fire -1714 Cogmind --------- Core Integrity 984/1600 Matter 260/300 Energy 159/200 System Corruption 29% Temperature Cool (49) Movement Core (50) Location 0b10 Command Parts ------- > --- POWER (2) -------- (None) > --- PROPULSION (4) --- Advanced Heavy Treads Advanced Heavy Siege Treads > --- UTILITY (15) ----- Advanced Coolant Injector Small Battery Advanced Target Analyzer Advanced Target Analyzer Advanced Armor Integrity Analyzer Advanced Transmission Jammer Relay Coupler [Swarmer] (25) > --- WEAPON (4) ------- (None) > --- INVENTORY (4) ---- Light Quantum Reactor Improved Antigrav System Sigix Broadsword Peak State ------------ > --- POWER ------------ Reinforced Antimatter Reactor Light Quantum Reactor > --- PROPULSION ------- Armored Heavy Treads Armored Heavy Treads > --- UTILITY ---------- Advanced Coolant Injector Large Storage Unit High-capacity Storage Unit High-capacity Storage Unit High-capacity Storage Unit Advanced Targeting Computer Advanced Target Analyzer Advanced Core Analyzer Advanced Armor Integrity Analyzer Improved Particle Charger Layered Medium Armor Plating Heavy Reactive Plating Heavy Reactive Plating > --- WEAPON ----------- Enhanced Quantum Rifle Enhanced Quantum Rifle Sigix Broadsword > --- INVENTORY -------- Light Particle Reactor Light Particle Reactor Light Quantum Reactor Armored Heavy Treads Advanced Heavy Treads Advanced Heavy Treads Advanced Heavy Siege Treads Matter Compressor Heavy Reactive Plating Heavy Reactive Plating Relay Coupler [NC] Relay Coupler [Behemoth] System Backup Module System Backup Module Gamma Rifle Gamma Rifle Gamma Rifle Gamma Rifle Gamma Rifle Gamma Rifle Gamma Rifle Variable Charge Gun Enhanced Quantum Rifle Enhanced Nova Cannon Enhanced Nova Cannon Enhanced Nova Cannon Enhanced Nova Cannon Advanced Remote Datajack [Rating: 185] Favorites ----------- Power Reinforced Fission Core Engine Improved Deuterium Engine Power Core Reinforced Fission Core Reactor Light Antimatter Reactor Propulsion Experimental Myomer Leg Treads Medium Treads Leg Experimental Myomer Leg Wheel Armored Wheel Hover Unit Improved Antigrav System Utility Large Storage Unit Device System Backup Module Storage Large Storage Unit Processor Advanced Target Analyzer Hackware Improved Hacking Suite Protection Centrium Medium Armor Plating Weapon Mini Assault Cannon Energy Gun Gamma Rifle Energy Cannon Enhanced Nova Cannon Ballistic Gun Coil Gun Ballistic Cannon Mini Assault Cannon Launcher Fusion Bomb Launcher Special Weapon Advanced Remote Datajack Impact Weapon Flail Slashing Weapon Sigix Broadsword Piercing Weapon Heavy Pick Special Melee Weapon Advanced Datajack Build | -11 -10 -10 -10 -9 -8 -8 -8 -8 -7 -7 -7 -7 -6 -6 -5 -5 -4 -4 -4 -4 -4 -4 -3 -3 -3 -3 -2 -2 -1 -1 ------- Run | Scr Mat Min Exi Min Mat Gar Sto Gar Fac Gar Fac Gar Fac Gar Fac Gar Fac Ext Cet Arc Hub Gar Res Qua Gar Sec Res Gar Acc Com Slots Evolved 18 | . . . . . 4 . . . 2 . . . 2 . 2 . 2 . . . . . 2 . . . 2 . 2 . Power 1 | . . . . . . . . . . . . . . . . . . . . . . . . . . . 1 . . . Propulsion 2 | . . . . . . . . . . . . . . . . . 1 . . . . . 1 . . . . . . . Utility 13 | . . . . . 4 . . . 2 . . . 2 . . . 1 . . . . . 1 . . . 1 . 2 . Weapon 2 | . . . . . . . . . . . . . . . 2 . . . . . . . . . . . . . . . Parts Attached 841 | 6 14 5 1 1 5 34 13 10 3 48 1 14 12 30 10 28 20 81 25 9 5 24 95 24 61 41 7 57 37 120 Power 46 | 1 1 1 . . . 4 2 . . 5 . 1 1 1 . 5 1 2 1 1 . . 2 . 5 . 1 6 2 3 Engine 20 | 1 1 . . . . 3 2 . . 5 . 1 1 1 . 3 . . . . . . . . 2 . . . . . Core 10 | . . 1 . . . 1 . . . . . . . . . 2 . 1 1 . . . 1 . 1 . . 2 . . Reactor 16 | . . . . . . . . . . . . . . . . . 1 1 . 1 . . 1 . 2 . 1 4 2 3 Propulsion 103 | 2 2 2 . . . 7 1 2 . 9 . 2 2 3 1 . 1 16 3 1 . 2 2 4 12 5 . 7 2 15 Treads 59 | . 2 . . . . 4 1 2 . 9 . 2 2 3 1 . 1 8 2 1 . 2 2 4 3 . . . . 10 Leg 39 | 2 . 2 . . . 3 . . . . . . . . . . . 8 1 . . . . . 8 5 . 7 2 1 Wheel 1 | . . . . . . . . . . . . . . . . . . . . . . . . . 1 . . . . . Hover 4 | . . . . . . . . . . . . . . . . . . . . . . . . . . . . . . 4 Flight . | . . . . . . . . . . . . . . . . . . . . . . . . . . . . . . . Utility 342 | 1 4 2 1 . 4 9 2 2 3 17 1 4 7 11 5 10 12 35 7 4 5 9 60 13 16 17 2 21 21 37 Device 180 | . 1 . . . 2 3 1 . 2 3 . 2 1 2 1 4 6 23 1 . 2 2 40 8 10 8 2 18 16 22 Storage 35 | 1 3 2 1 . 2 2 1 . . 7 . . 1 4 1 2 . 3 . 1 . . . . 2 . . . . 2 Processor 12 | . . . . . . 1 . . 1 . . . . . 1 . . . 1 . . . 2 1 1 . . . 2 2 Hackware 32 | . . . . . . . . . . . 1 . 1 . . . 1 1 . . 2 1 8 . 1 7 . 1 3 5 Protection 83 | . . . . . . 3 . 2 . 7 . 2 4 5 2 4 5 8 5 3 1 6 10 4 2 2 . 2 . 6 Artifact . | . . . . . . . . . . . . . . . . . . . . . . . . . . . . . . . Weapon 350 | 2 7 . . 1 1 14 8 6 . 17 . 7 2 15 4 13 6 28 14 3 . 13 31 7 28 19 4 23 12 65 Energy Gun 97 | 2 2 . . . 1 3 3 . . 5 . 2 . 2 . . 4 9 1 . . . 6 . 9 5 . 11 . 32 Energy Cannon 36 | . . . . . . . . . . . . . . 2 . . . . . . . . . . 2 . . 7 7 18 Ballistic Gun 69 | . 2 . . 1 . 9 . . . 2 . . . 2 . 6 . 8 10 2 . 7 10 1 8 . . . . 1 Ballistic Cannon 39 | . . . . . . 1 4 3 . 6 . 2 2 5 2 4 1 . . . . . 4 1 2 1 . . . 1 Launcher 39 | . . . . . . 1 1 3 . 4 . 3 . 4 . 3 1 4 3 . . 4 3 2 3 . . . . . Special Weapon 34 | . 1 . . . . . . . . . . . . . 2 . . . . . . 1 6 . 2 6 1 2 4 9 Impact Weapon 2 | . 2 . . . . . . . . . . . . . . . . . . . . . . . . . . . . . Slashing Weapon 27 | . . . . . . . . . . . . . . . . . . . . 1 . 1 2 3 2 7 3 3 1 4 Piercing Weapon 1 | . . . . . . . . . . . . . . . . . . 1 . . . . . . . . . . . . Special Melee Weapon 6 | . . . . . . . . . . . . . . . . . . 6 . . . . . . . . . . . . Unidentified Prototypes 14 | . . . . . 1 . 4 . . . . . . . . . . . 1 1 . 1 1 1 1 1 . 1 . 1 Parts Lost 161 | . 2 1 . . . 15 1 1 . 16 . 4 1 14 . 1 1 9 2 1 . 6 13 8 22 6 . 14 2 21 Power 21 | . 1 . . . . 3 1 . . 2 . 1 . 1 . . . . . . . . 1 . 4 . . 4 1 2 Propulsion 34 | . . 1 . . . 5 . . . 5 . 2 . 3 . . . 2 . . . 2 1 2 5 1 . 3 . 2 Utility 48 | . . . . . . 3 . 1 . 4 . 1 1 6 . 1 1 . 1 1 . 2 3 5 6 1 . 3 . 8 Weapon 58 | . 1 . . . . 4 . . . 5 . . . 4 . . . 7 1 . . 2 8 1 7 4 . 4 1 9 Highest Loss Streak 15 | . 2 1 . . . 6 1 1 . 13 . 3 1 8 . 1 1 3 1 1 . 3 3 5 15 6 . 5 1 9 Average Slot Usage (%) 94 | . 94 99 100 100 98 96 99 100 100 97 100 99 97 95 91 91 93 97 97 93 94 93 89 88 91 97 95 95 96 84 Engine 1 | . 9 5 . . . 3 8 9 7 6 7 6 6 5 5 2 . . . . . . . . . . . . . . Core 2 | . . 8 14 14 9 5 . . . . . . . . . 2 . 3 2 1 . . 1 4 2 4 4 4 . . Reactor 1 | . . . . . . . . . . . . . . . . . 4 1 2 3 5 5 2 . . . 4 3 7 7 Treads 8 | . 13 9 . . . 7 18 18 15 13 15 14 13 12 9 5 10 9 2 10 10 9 9 11 10 . . . . 6 Leg 6 | . 14 18 28 28 18 9 . . . . . . . . . . . 5 10 . . . . . 4 19 17 16 16 3 Device 6 | . 10 . . . 16 6 6 . 7 4 . 2 9 5 . . 8 3 . . . . 3 8 9 2 4 10 11 12 Storage 29 | . 17 28 28 28 36 40 45 45 38 45 46 46 41 45 36 39 36 36 36 36 36 36 26 23 22 19 17 17 16 16 Processor 5 | . . . . . . 1 . . 7 2 . . . . 3 5 5 5 5 5 5 5 1 7 9 10 8 8 14 15 Hackware 6 | . . . . . . . . . . . 6 7 2 . . . 1 9 5 . 7 10 20 9 5 21 21 17 18 8 Protection 4 | . . . . . . 4 2 9 7 7 7 4 9 10 9 8 4 1 9 14 7 4 1 5 7 1 4 1 . 2 Energy Gun 4 | . 9 . . . 6 2 10 . . 4 . 4 13 . . . 4 9 . . . . 3 2 6 9 . 4 . 5 Ballistic Gun 6 | . 9 28 28 28 12 13 1 . . . . . . . . 8 . 7 19 18 21 18 9 3 5 . . . . . Ballistic Cannon 2 | . . . . . . . 6 16 15 9 15 9 . 11 18 12 15 . . . . . 1 2 . . . . . . Slashing Weapon 1 | . . . . . . . . . . . . . . . . . . . . 1 . . . 2 2 4 10 6 3 3 Naked Turns . | . . . . . . . . . . . . . . . . . . . . . . . . . . . . . . . Heaviest Build 257 | 11 25 43 59 59 93 108 114 120 115 143 134 135 155 163 162 170 170 201 219 226 225 214 212 186 197 162 155 167 183 257 Greatest Support 160 | 20 40 40 20 20 20 40 40 40 40 40 40 48 48 48 70 70 93 93 93 98 98 108 160 160 136 100 100 100 108 145 Greatest Overweight (x) 41 | 2 . 4 2 2 4 6 2 2 2 41 3 3 3 3 4 2 1 4 3 3 2 2 1 1 10 2 1 1 1 3 Average Overweight (x) 1 | . . 1 2 2 3 2 2 2 2 3 3 2 2 3 2 1 1 2 2 2 2 1 . 1 1 1 1 1 1 . Largest Inventory Capacity 52 | 6 12 16 18 18 30 36 36 36 36 48 42 42 48 48 46 46 46 52 52 52 52 52 52 38 44 32 32 32 32 34 Average Capacity 37 | 5 7 13 17 18 29 31 35 36 36 41 42 42 43 47 43 44 46 50 52 52 52 52 42 38 36 32 32 32 32 32 Most Carried 52 | 6 9 16 18 18 22 34 36 36 35 44 42 42 48 48 46 46 46 52 52 52 52 52 52 38 44 32 32 32 32 34 Average Carried 35 | 3 6 13 16 17 18 26 35 35 34 39 41 40 42 44 42 44 45 49 51 50 52 50 39 35 34 30 30 30 31 31 Final Capacity 52 | 6 12 16 18 18 30 34 36 36 36 42 42 42 48 42 46 46 46 52 52 52 52 52 38 38 32 32 32 32 32 4 Final Carried 52 | 6 9 16 18 18 22 34 36 36 34 42 42 41 48 37 46 46 46 52 52 52 52 49 36 35 32 30 32 32 32 4 Class Distribution -------------------- 25% | Botlord-Mutant 20% | Scavenger-Mutant 15% | Hauler-Mutant 14% | Botlord-Gunner 9% | Mutant 5% | Botlord-Tank 4% | Hauler-Tank Dominant Class ---------------- Mutant | -10/Materials Mutant | -10/Mines Mutant | -10/Exiles Mutant | -9/Mines Hauler-Mutant | -8/Materials Hauler-Mutant | -8/Garrison Hauler-Mutant | -8/Storage Hauler-Mutant | -8/Garrison Hauler-Mutant | -7/Factory Hauler-Mutant | -7/Garrison Scavenger-Mutant | -7/Factory Scavenger-Mutant | -7/Garrison Hauler-Mutant | -6/Factory Hauler-Mutant | -6/Garrison Hauler-Tank | -5/Factory Hauler-Tank | -5/Garrison Botlord-Mutant | -4/Factory Botlord-Mutant | -4/Extension Botlord-Tank | -4/Cetus Botlord-Tank | -4/Archives Botlord-Gunner | -4/Hub_04(d) Botlord-Gunner | -4/Garrison Botlord-Mutant | -3/Research Scavenger-Mutant | -3/Quarantine Scavenger-Mutant | -3/Garrison Botlord-Mutant | -3/Section 7 Botlord-Mutant | -2/Research Botlord-Mutant | -2/Garrison Botlord-Mutant | -1/Access Botlord-Mutant | -1/Command Resources | -11 -10 -10 -10 -9 -8 -8 -8 -8 -7 -7 -7 -7 -6 -6 -5 -5 -4 -4 -4 -4 -4 -4 -3 -3 -3 -3 -2 -2 -1 -1 ----------- Run | Scr Mat Min Exi Min Mat Gar Sto Gar Fac Gar Fac Gar Fac Gar Fac Gar Fac Ext Cet Arc Hub Gar Res Qua Gar Sec Res Gar Acc Com Matter Collected 17371 | 217 106 298 40 79 . 788 110 367 . 1193 . 436 261 609 190 994 506 1871 788 228 . 995 1897 385 1796 402 . 803 402 1610 Remotely 2600 | . . . . . . . . . . . . . . . . 708 66 396 245 . . 250 882 53 . . . . . . Salvage Created 18742 | . 234 241 . 112 . 1024 367 167 . 2309 . 439 261 442 190 876 345 2351 382 598 . 1020 748 497 1858 481 . 1304 510 1986 Parts 811 | . 8 12 . 7 . 67 19 11 . 82 . 26 16 18 13 42 18 84 13 20 . 42 36 25 54 21 . 47 32 98 Haulers Intercepted 2 | . . . . . . . . . . . . . . . . . . 2 . . . . . . . . . . . . Recyclers Shooed 5 | . . . . . . . . . . . . . . . 2 . 1 1 . . . . 1 . . . . . . . Parts Field Recycled . | . . . . . . . . . . . . . . . . . . . . . . . . . . . . . . . Retrieved Matter . | . . . . . . . . . . . . . . . . . . . . . . . . . . . . . . . Parts Self-Destructed . | . . . . . . . . . . . . . . . . . . . . . . . . . . . . . . . Prevented . | . . . . . . . . . . . . . . . . . . . . . . . . . . . . . . . Kills | -11 -10 -10 -10 -9 -8 -8 -8 -8 -7 -7 -7 -7 -6 -6 -5 -5 -4 -4 -4 -4 -4 -4 -3 -3 -3 -3 -2 -2 -1 -1 ------- Run | Scr Mat Min Exi Min Mat Gar Sto Gar Fac Gar Fac Gar Fac Gar Fac Gar Fac Ext Cet Arc Hub Gar Res Qua Gar Sec Res Gar Acc Com Combat Hostiles Destroyed 293 | . 7 7 . 3 . 23 6 7 . 27 . 20 2 16 . 16 7 22 5 4 . 18 16 9 23 7 . 14 5 29 Melee 15 | . 1 . . . . . . . . . . . . . . . . . . . . . . 3 1 2 . 4 1 3 Guns 112 | . 5 7 . 3 . 17 5 . . 8 . 1 2 2 . 6 . 8 1 4 . 4 8 1 12 5 . . . 13 Cannons 57 | . . . . . . 3 1 6 . 10 . 7 . 5 . 4 4 . . . . . 1 2 . . . . 4 10 AOE 88 | . . . . . . 3 . 1 . 9 . 12 . 9 . 5 3 13 1 . . 14 7 3 8 . . . . . Classes Destroyed 15 | . 2 . . 1 . 3 . 1 . . . . 1 . 1 1 1 4 . . . . . . . . . . . . Worker 13 | . . . . . . . . . . . . . . . . . . 7 . . . . 4 1 . . . . . 1 Builder 8 | . . . . . . . . . . . . . . . . . . 5 . . . . 2 1 . . . . . . Tunneler 5 | . . . . . . . . . . . . . . . 1 . 2 1 . . . . 1 . . . . . . . Hauler 2 | . . . . . . . . . . . . . . . . . . 2 . . . . . . . . . . . . Recycler 10 | . . . . . . . . . . . . . 1 . 1 . 1 6 . . . . . . . . . . 1 . Operator 9 | . . . . . . . . . . . . . . . . . . 1 . 7 . . . 1 . . . . . . Watcher 5 | . . . . . . 1 1 . . . . . . . . . . 1 1 . . . 1 . . . . . . . Swarmer 57 | . 3 3 . 1 . 7 . . . . . 11 . 7 . 2 4 . . . . 11 3 . 3 . . . . 2 Grunt 92 | . 4 4 . 1 . 8 2 3 . 12 . 6 . 4 . 12 . 8 . . . 2 1 . 15 . . 6 . 4 Brawler 8 | . . . . 1 . 1 . . . 2 . . . . . . . . 1 . . . 1 . 1 . . . . 1 Duelist 5 | . . . . . . . . 2 . . . . . . . . . 1 . . . . . . 2 . . . . . Sentry 52 | . . . . . . 6 4 2 . 13 . 2 2 2 . 1 . 6 . 4 . 3 2 1 1 . . . . 3 Hunter 35 | . . . . . . 2 . . . . . 1 . 3 . . . 7 . . . 2 5 2 2 4 . 3 2 2 Programmer 38 | . . . . . . . . . . . . . . . . . 3 . . . . 1 5 6 . 3 . 4 3 13 Behemoth 5 | . . . . . . . . . . . . . . . . 1 . 2 . . . . . . 1 . . 1 . . Cetus Guard 4 | . . . . . . . . . . . . . . . . . . . 4 . . . . . . . . . . . M Guard 2 | . . . . . . . . . . . . . . . . . . . . . . . . . . . . . . 2 Combat Programmer 2 | . . . . . . . . . . . . . . . . . . . . . . . . . . . . . . 2 Best Kill Streak 21 | . 2 2 . 3 . 7 3 4 . 8 . 7 2 5 1 5 6 21 3 3 . 6 5 6 4 3 . 2 3 4 Combat Bots Only 8 | . 2 2 . 3 . 7 3 4 . 8 . 7 1 5 . 5 6 8 3 2 . 6 4 5 4 3 . 2 3 4 Max Kills in Single Turn 5 | . 1 2 . 2 . 2 1 1 . 2 . 2 1 3 1 4 2 4 1 1 . 4 5 2 2 2 . 1 1 1 Gunslinging 1 | . . 1 . . . 1 . . . . . . . . . . . . . . . . . . 1 1 . . . . Exploded 4 | . . . . . . 1 . 1 . 2 . 2 . 3 . 4 2 3 1 . . 4 2 1 2 . . . . . Melee 1 | . 1 . . . . . . . . . . . . . . . . . . . . . . 1 1 1 . 1 1 1 Uniques/NPCs Destroyed . | . . . . . . . . . . . . . . . . . . . . . . . . . . . . . . . Combat | -11 -10 -10 -10 -9 -8 -8 -8 -8 -7 -7 -7 -7 -6 -6 -5 -5 -4 -4 -4 -4 -4 -4 -3 -3 -3 -3 -2 -2 -1 -1 -------- Run | Scr Mat Min Exi Min Mat Gar Sto Gar Fac Gar Fac Gar Fac Gar Fac Gar Fac Ext Cet Arc Hub Gar Res Qua Gar Sec Res Gar Acc Com Damage Taken 46272 | . 533 388 . 24 . 2443 304 401 . 3428 . 1117 150 2394 . 2026 761 2517 962 248 685 2086 3886 3180 4225 1611 . 2766 1226 8911 Core 3961 | . 113 54 . 12 . 314 26 15 . 383 . 189 . 200 . 117 30 210 22 . 45 223 447 184 449 139 . 173 42 574 Absorbed by Shields 492 | . . . . . . . . . . 67 . 30 . . . . . . . . . 45 . . 350 . . . . . Reduced by Siege Mode 470 | . . . . . . . . . . . . . . . . 92 16 . . 14 . 9 38 . 14 . . . . 287 Core Remaining (%) 55 | 100 . . . 28 . . . 35 . . . 18 . 76 . 88 . . . . . 53 . . . 6 . 88 . 61 Volleys Fired 865 | . 16 22 . 4 . 94 22 13 . 87 1 34 7 40 7 29 34 61 21 9 . 39 68 12 74 24 . 49 14 84 Largest 4 | . 2 2 . 2 . 2 2 2 . 2 2 2 2 2 2 4 4 4 4 4 . 4 4 3 4 4 . 4 4 4 Hottest 507 | . 100 46 . 46 . 90 105 96 . 120 96 160 160 180 48 138 324 324 225 140 . 151 282 176 306 357 . 300 480 507 Shots Fired 1843 | . 32 44 . 8 . 173 43 23 . 161 2 55 14 74 10 81 78 162 47 36 . 69 134 22 176 48 . 106 32 213 Gun 1168 | . 32 44 . 8 . 154 17 . . 97 . 8 14 17 . 60 14 139 37 36 . 39 77 10 144 34 . 62 . 125 Cannon 470 | . . . . . . 17 26 18 . 52 2 37 . 50 3 10 60 . . . . . 24 7 20 1 . 40 27 76 Launcher 144 | . . . . . . 2 . 5 . 12 . 10 . 7 . 11 4 23 10 . . 28 19 5 8 . . . . . Special 61 | . . . . . . . . . . . . . . . 7 . . . . . . 2 14 . 4 13 . 4 5 12 Kinetic 914 | . 14 44 . 8 . 148 26 18 . 62 2 37 . 57 3 70 60 60 36 36 . 39 74 16 101 1 . . . 2 Thermal 408 | . 18 . . . . 17 8 . . . . 8 14 10 7 . 14 79 1 . . . 27 1 . 34 . . 27 143 Explosive 105 | . . . . . . 2 . 5 . 8 . 10 . 7 . 2 . 23 2 . . 14 19 5 8 . . . . . Electromagnetic 362 | . . . . . . 6 9 . . 91 . . . . . 9 4 . 8 . . 14 . . 63 . . 102 . 56 Robot Hit Streak 37 | . 12 25 . 8 . 37 7 8 . 24 . 8 14 14 19 29 14 12 7 14 . 13 19 18 16 8 . 17 7 27 Robot Miss Streak 6 | . 2 1 . 2 . 3 2 2 . 5 . 2 1 6 . 1 2 4 5 1 . 1 3 3 2 2 . 4 5 2 Penetration Max 1 | . . . . . . . . . . . . . . . . . . . 1 1 . . 1 . 1 . . . . . Secondary Targets 15 | . 1 2 . . . 3 . . . 1 . . . . . 1 . 1 . . . . 1 . 4 1 . . . . Max Gunslinging Chain 1 | . 1 1 . . . 1 . . . 1 . . . . . 1 . 1 . . . . 1 . 1 1 . . . . Shots Hit Robots 1362 | . 27 35 . 4 . 141 13 16 . 134 . 31 11 49 5 65 48 136 21 45 . 28 86 25 125 38 . 87 18 174 Core Hits 833 | . 9 11 . 4 . 46 10 14 . 109 . 33 6 38 3 40 17 105 27 22 . 44 60 29 90 17 . 24 7 68 Critical Hits 87 | . . . . . . 2 . . . 2 . 1 1 2 1 . 1 2 4 11 . 1 1 8 13 3 . 16 6 12 Critical Kills 23 | . . . . . . 1 . . . 1 . . 1 . 1 . . 1 1 2 . 1 . 2 2 . . 2 4 4 Critical Parts Destroyed 49 | . . . . . . 1 . . . 1 . 1 . 2 . . 1 1 2 6 . . 1 6 10 1 . 8 2 6 Melee Attacks 202 | . 10 . . . . . . . . . . . . . . . . 37 . 19 . 8 8 17 8 31 1 24 22 17 Impact 10 | . 10 . . . . . . . . . . . . . . . . . . . . . . . . . . . . . Slashing 155 | . . . . . . . . . . . . . . . . . . . . 19 . 8 8 17 8 31 1 24 22 17 Piercing 3 | . . . . . . . . . . . . . . . . . . 3 . . . . . . . . . . . . Sneak Attacks 44 | . . . . . . . . . . . . . . . . . . 36 . 8 . . . . . . . . . . Combat Hostiles . | . . . . . . . . . . . . . . . . . . . . . . . . . . . . . . . Follow-up Attacks 9 | . 2 . . . . . . . . . . . . . . . . . . . . . . . . 2 . 5 . . Damage Inflicted 56745 | . 461 471 . 104 . 2288 302 725 . 3915 . 1954 267 2065 108 2771 1550 7798 1815 2619 28 3524 4839 2434 5804 987 . 2867 768 6281 Guns 19883 | . 296 471 . 103 . 1751 274 . . 1797 . 144 267 232 . 1169 168 2342 771 770 . 436 1467 185 2518 652 . 944 . 3126 Cannons 9593 | . . . . . . 187 28 405 . 1083 . 538 . 771 . 196 1166 . . . . . 345 233 314 . . 815 692 2820 Explosions 20818 | . . . . . . 350 . 320 . 1035 . 1272 . 1040 . 1406 216 5174 1044 . . 2318 2984 956 2703 . . . . . Melee 6218 | . 165 . . . . . . . . . . . . . . . . 282 . 1849 . 770 . 1060 269 332 . 1105 76 310 Ramming 151 | . . . . 1 . . . . . . . . . 22 26 . . . . . 28 . 43 . . 3 . 3 . 25 Kinetic 14246 | . 184 471 . 103 . 1519 28 405 . 1316 . 538 . 774 . 1365 1166 874 771 770 . 436 1382 391 1723 . . . . 30 Thermal 10377 | . 112 . . . . 306 139 . . 279 . 144 267 229 82 . 223 1543 . . . . 430 27 78 652 . . 692 5174 Explosive 17935 | . . . . . . 350 . 320 . 524 . 1272 . 1040 . 739 . 5099 359 . . 1667 2984 956 2625 . . . . . Electromagnetic 7818 | . . . . . . 113 135 . . 1796 . . . . . 667 161 . 685 . . 651 . . 1109 . . 1759 . 742 Impact 165 | . 165 . . . . . . . . . . . . . . . . . . . . . . . . . . . . . Slashing 5771 | . . . . . . . . . . . . . . . . . . . . 1849 . 770 . 1060 269 332 . 1105 76 310 Piercing 282 | . . . . . . . . . . . . . . . . . . 282 . . . . . . . . . . . . Highest Corruption 29 | . 1 1 1 1 . . . . . 4 4 4 . . . . 2 3 . . . 1 7 14 14 3 . 2 8 29 Average Corruption 4 | . 1 1 1 1 . . . . . 4 4 4 . . . . 1 2 . . . 1 6 10 5 2 . 1 6 9 Corruption Purged 48 | . . . . . . . . . . . . . . . . . . 3 . . . 1 1 1 14 . . 4 6 18 Effects 315 | . 1 6 3 . . . . . . 13 2 14 . . . . 2 26 . . . 2 35 24 61 10 . 7 19 90 Message Errors 72 | . 1 2 2 . . . . . . 2 1 3 . . . . 1 7 . . . 1 7 4 15 1 . 4 6 15 Matter Fused 60 | . . . . . . . . . . 4 1 3 . . . . . 2 . . . . 5 3 15 3 . . 4 20 Heat Flow Errors 33 | . . . . . . . . . . 1 . 3 . . . . . 3 . . . . 3 4 8 . . . 1 10 Energy Discharges 35 | . . 1 1 . . . . . . . . . . . . . . 4 . . . . 5 3 11 3 . 1 3 3 Parts Rejected 2 | . . . . . . . . . . 1 . . . . . . . . . . . . . 1 . . . . . . Data Loss (minor) 42 | . . 2 . . . . . . . 3 . 2 . . . . 1 5 . . . . 6 3 5 2 . 2 3 8 Data Loss (major) 5 | . . . . . . . . . . . . . . . . . . . . . . . . . 4 . . . . 1 Misfires 10 | . . . . . . . . . . . . . . . . . . . . . . . 1 1 2 . . . 2 4 Alerts 2 | . . . . . . . . . . . . . . . . . . . . . . . . 1 . . . . . 1 Misdirections 4 | . . . . . . . . . . . . . . . . . . . . . . . . . . . . . . 4 Targeting Errors 44 | . . 1 . . . . . . . 2 . 1 . . . . . 5 . . . 1 8 4 1 1 . . . 20 Weapon Failures 6 | . . . . . . . . . . . . 2 . . . . . . . . . . . . . . . . . 4 Overload Shots 4 | . . . . . . . . . . . . . . . . . . . 1 . . . . . . . . . . 3 Overflow Damage 2092 | . 12 . . . . 11 18 . . 4 . 58 . 56 . 28 73 265 . 828 . 55 225 210 89 . . 77 . 83 Projectiles 183 | . . . . . . . . . . . . 6 . 1 . . 69 . . . . . . 24 . . . . . 83 Explosions 757 | . . . . . . 11 18 . . 4 . 52 . 55 . 28 4 265 . . . . 225 49 46 . . . . . Melee 1152 | . 12 . . . . . . . . . . . . . . . . . . 828 . 55 . 137 43 . . 77 . . Knockbacks 42 | . 1 . . . . . . 5 . 8 . 7 . 7 . 1 9 . . . . . 1 2 . . . . . 1 Impact 3 | . 1 . . . . . . . . . . . . . . . . . . . . . 1 . . . . . . 1 Kinetic 36 | . . . . . . . . 5 . 6 . 6 . 7 . 1 9 . . . . . . 2 . . . . . . Secondary 3 | . . . . . . . . . . 2 . 1 . . . . . . . . . . . . . . . . . . Self-Inflicted Damage 1230 | . . . . . . 30 77 36 . 209 . 147 . 139 . 22 5 . . . . 59 213 200 93 . . . . . Shots 41 | . . . . . . 2 1 1 . 9 . 5 . 5 . 1 1 . . . . 5 5 4 2 . . . . . Rammed 13 | . . . . 1 . . . . . . . . . 1 3 . . . . . 2 . 3 . . . . . . 3 Targets Rammed 15 | . . . . 1 . . . . . . . . . 1 3 . . . . . 2 . 3 . . 1 . 1 . 3 Kicked 2 | . . . . . . . . . . . . . . . . . . . . . . . . . . 1 . 1 . . Crushed . | . . . . . . . . . . . . . . . . . . . . . . . . . . . . . . . Highest Temperature 528 | . 187 25 . 3 . 231 225 150 . 324 21 263 135 266 4 334 202 528 176 162 5 103 403 185 240 255 . 198 444 471 Average Temperature 93 | . 87 11 . 3 . 85 62 52 . 86 14 93 54 83 2 148 52 127 52 66 3 37 107 98 88 104 . 80 120 112 Received Heat Transfer 5640 | . 159 177 . 12 . 792 63 99 . 1152 . 237 60 198 . 405 51 252 24 18 129 222 168 81 525 42 . 468 . 306 Effects 15 | . . . . . . . . . . . . 3 . . . 3 . 3 . . . . 2 . . . . . . 4 Shutdowns 4 | . . . . . . . . . . . . . . . . . . 1 . . . . 1 . . . . . . 2 Energy Bleed 2 | . . . . . . . . . . . . . . . . . . 1 . . . . 1 . . . . . . . Interference 6 | . . . . . . . . . . . . 3 . . . 3 . . . . . . . . . . . . . . Matter Decay 1 | . . . . . . . . . . . . . . . . . . 1 . . . . . . . . . . . . Short Circuit 1 | . . . . . . . . . . . . . . . . . . . . . . . . . . . . . . 1 Damage (minor) 1 | . . . . . . . . . . . . . . . . . . . . . . . . . . . . . . 1 Siege Activations 26 | . . . . . . . . . . . . . . . . 3 1 . . 4 . 5 6 . 1 . . . . 6 Total Turns 393 | . . . . . . . . . . . . . . . . 99 21 . . 28 . 30 47 . 35 . . . . 133 Longest Duration 71 | . . . . . . . . . . . . . . . . 64 21 . . 12 . 10 14 . 35 . . . . 71 Robots Corrupted 32 | . . . . . . 1 . . . 8 . . . . . 1 . . 3 . . . . . 7 . . 10 . 2 Combat Hostiles 18 | . . . . . . . . . . . . . . . . 1 . . 3 . . . . . 2 . . 10 . 2 Parts Fried 54 | . 1 . . . . . . . . 11 . . . . . 4 1 . 4 . . 4 . . 5 . . 17 . 7 Impact Corruptions 1 | . 1 . . . . . . . . . . . . . . . . . . . . . . . . . . . . . Robots Melted 2 | . . . . . . . . . . . . . . . . . . 1 . . . . . . . . . . . 1 Combat Hostiles 2 | . . . . . . . . . . . . . . . . . . 1 . . . . . . . . . . . 1 Parts Melted 52 | . 1 . . . . 1 . . . . . . . 5 1 . 2 12 . . . . . . . 5 . . 3 22 Heat Transferred 10864 | . 333 . . . . 592 259 . . 300 . 222 407 272 185 . 309 2350 . . . . 759 50 50 818 . . 517 3441 Parts Sabotaged . | . . . . . . . . . . . . . . . . . . . . . . . . . . . . . . . Parts Stolen . | . . . . . . . . . . . . . . . . . . . . . . . . . . . . . . . Parts Stripped . | . . . . . . . . . . . . . . . . . . . . . . . . . . . . . . . Power Chain Reactions 9 | . . . . . . . . . . 5 . . . . . . 1 . . . . 2 . . 1 . . . . . Missiles Intercepted . | . . . . . . . . . . . . . . . . . . . . . . . . . . . . . . . Alert | -11 -10 -10 -10 -9 -8 -8 -8 -8 -7 -7 -7 -7 -6 -6 -5 -5 -4 -4 -4 -4 -4 -4 -3 -3 -3 -3 -2 -2 -1 -1 ------- Run | Scr Mat Min Exi Min Mat Gar Sto Gar Fac Gar Fac Gar Fac Gar Fac Gar Fac Ext Cet Arc Hub Gar Res Qua Gar Sec Res Gar Acc Com Peak Influence 857 | . 137 187 . 162 27 857 417 319 182 808 425 674 403 379 209 430 241 504 301 131 31 363 408 413 547 400 194 376 220 95 Initial 424 | . . 22 . . . 17 417 152 167 127 424 297 353 166 198 14 225 117 . 48 7 21 204 182 180 301 174 145 220 . Average 231 | . 34 39 . 34 6 493 219 247 170 376 424 503 320 316 117 331 214 205 148 65 10 256 213 250 296 287 184 268 49 30 Maximum Alert Level 3 | . . . . . . 3 2 1 . 3 2 2 2 1 1 2 1 2 1 . . 1 2 2 2 2 . 1 1 . Low Security (%) 52 | 100 100 100 . 100 100 16 39 36 100 25 . . . 1 88 24 17 60 70 100 100 34 41 27 55 19 100 32 89 100 Level 1 32 | . . . . . . 21 55 63 . 36 . 40 99 98 11 20 82 13 30 . . 65 55 71 15 79 . 67 10 . Level 2 13 | . . . . . . 35 4 . . 27 100 59 . . . 55 . 26 . . . . 3 . 28 . . . . . Level 3 1 | . . . . . . 26 . . . 9 . . . . . . . . . . . . . . . . . . . . Level 4 . | . . . . . . . . . . . . . . . . . . . . . . . . . . . . . . . Level 5 . | . . . . . . . . . . . . . . . . . . . . . . . . . . . . . . . High Security . | . . . . . . . . . . . . . . . . . . . . . . . . . . . . . . . Max Security . | . . . . . . . . . . . . . . . . . . . . . . . . . . . . . . . Squads Dispatched 27 | . . . . 1 . 1 . . . . . . . . . . 1 1 . . 1 . 5 3 . 5 . . 2 7 Investigation 2 | . . . . . . . . . . . . . . . . . . . . . . . 1 . . . . . . 1 Extermination 15 | . . . . . . . . . . . . . . . . . 1 . . . . . 3 1 . 2 . . 2 6 Reinforcement 7 | . . . . . . . . . . . . . . . . . . 1 . . 1 . 1 1 . 3 . . . . Assault 2 | . . . . 1 . 1 . . . . . . . . . . . . . . . . . . . . . . . . Garrison 1 | . . . . . . . . . . . . . . . . . . . . . . . . 1 . . . . . . Intercept . | . . . . . . . . . . . . . . . . . . . . . . . . . . . . . . . Construction Impeded 1 | . . . . . . . . . . . . . . . . . . 1 . . . . . . . . . . . . Haulers Reinforced . | . . . . . . . . . . . . . . . . . . . . . . . . . . . . . . . Stealth | -11 -10 -10 -10 -9 -8 -8 -8 -8 -7 -7 -7 -7 -6 -6 -5 -5 -4 -4 -4 -4 -4 -4 -3 -3 -3 -3 -2 -2 -1 -1 --------- Run | Scr Mat Min Exi Min Mat Gar Sto Gar Fac Gar Fac Gar Fac Gar Fac Gar Fac Ext Cet Arc Hub Gar Res Qua Gar Sec Res Gar Acc Com Distress Signals 22 | . 2 . . . . 3 1 . . 2 . . . . . . . 2 2 . . . 5 . . 2 . 2 . 1 Communications Jammed 153 | . . . . . . . . . . . . . . . . . . 59 . . 1 . 21 3 . 23 . . . 46 Distress Signals 152 | . . . . . . . . . . . . . . . . . . 59 . . 1 . 20 3 . 23 . . . 46 Times Spotted 548 | . 12 9 . 11 2 42 9 7 1 42 . 20 3 19 . 21 8 34 12 17 7 21 52 15 43 28 3 36 17 57 Peak Tracking Total 10 | . 5 3 . 4 1 10 4 3 1 7 . 5 1 5 . 8 5 9 5 1 7 7 6 4 10 6 4 6 4 6 Tactical Retreats 56 | . 2 1 . . . 11 . . . 4 . 1 . 4 . 4 1 1 . . . . 3 . 9 3 . 9 1 2 Traps | -11 -10 -10 -10 -9 -8 -8 -8 -8 -7 -7 -7 -7 -6 -6 -5 -5 -4 -4 -4 -4 -4 -4 -3 -3 -3 -3 -2 -2 -1 -1 ------- Run | Scr Mat Min Exi Min Mat Gar Sto Gar Fac Gar Fac Gar Fac Gar Fac Gar Fac Ext Cet Arc Hub Gar Res Qua Gar Sec Res Gar Acc Com Traps Triggered 56 | . 2 . . . . 5 2 4 . 2 . 2 . 5 . 2 1 6 . . . 8 1 . 8 . . 4 1 3 Indirectly 5 | . . . . . . . . . . . . . . . . 1 . . . . . 4 . . . . . . . . Trap Hack Attempts . | . . . . . . . . . . . . . . . . . . . . . . . . . . . . . . . Triggered . | . . . . . . . . . . . . . . . . . . . . . . . . . . . . . . . Disarmed . | . . . . . . . . . . . . . . . . . . . . . . . . . . . . . . . Reprogrammed . | . . . . . . . . . . . . . . . . . . . . . . . . . . . . . . . Reused . | . . . . . . . . . . . . . . . . . . . . . . . . . . . . . . . Traps Extracted . | . . . . . . . . . . . . . . . . . . . . . . . . . . . . . . . Installed . | . . . . . . . . . . . . . . . . . . . . . . . . . . . . . . . Triggered 1 | . . . . . . . . . . 1 . . . . . . . . . . . . . . . . . . . . Exploded 3 | . . . . . . 3 . . . . . . . . . . . . . . . . . . . . . . . . Machines | -11 -10 -10 -10 -9 -8 -8 -8 -8 -7 -7 -7 -7 -6 -6 -5 -5 -4 -4 -4 -4 -4 -4 -3 -3 -3 -3 -2 -2 -1 -1 ---------- Run | Scr Mat Min Exi Min Mat Gar Sto Gar Fac Gar Fac Gar Fac Gar Fac Gar Fac Ext Cet Arc Hub Gar Res Qua Gar Sec Res Gar Acc Com Machines Disabled 26 | . . . . . . 1 2 . . . . 1 . 1 . . 2 1 3 2 . 2 2 3 3 2 . 1 . . Max in Single Turn 2 | . . . . . . 1 1 . . . . 1 . 1 . . 1 1 2 1 . 1 1 1 1 1 . 1 . . Garrison Relay 5 | . . . . . . 1 . . . . . . . . . . . . . . . 1 . . 2 . . 1 . . Energy Cycler 1 | . . . . . . . . . . . . . . . . . . 1 . . . . . . . . . . . . Machines Sabotaged . | . . . . . . . . . . . . . . . . . . . . . . . . . . . . . . . Garrisons Compromised . | . . . . . . . . . . . . . . . . . . . . . . . . . . . . . . . Overloaded Fab Kills . | . . . . . . . . . . . . . . . . . . . . . . . . . . . . . . . Fab Network Shutdowns . | . . . . . . . . . . . . . . . . . . . . . . . . . . . . . . . Hacking | -11 -10 -10 -10 -9 -8 -8 -8 -8 -7 -7 -7 -7 -6 -6 -5 -5 -4 -4 -4 -4 -4 -4 -3 -3 -3 -3 -2 -2 -1 -1 --------- Run | Scr Mat Min Exi Min Mat Gar Sto Gar Fac Gar Fac Gar Fac Gar Fac Gar Fac Ext Cet Arc Hub Gar Res Qua Gar Sec Res Gar Acc Com Machines Accessed 63 | . 6 . . 2 1 . 3 . 1 . 2 . 3 . 3 . 3 13 2 1 1 . 4 2 . 5 2 . 3 6 Terminals 50 | . 6 . . 2 . . 2 . . . 1 . 1 . 2 . 2 13 2 . . . 4 1 . 4 1 . 3 6 Fabricators . | . . . . . . . . . . . . . . . . . . . . . . . . . . . . . . . Repair Stations . | . . . . . . . . . . . . . . . . . . . . . . . . . . . . . . . Recycling Units . | . . . . . . . . . . . . . . . . . . . . . . . . . . . . . . . Scanalyzers 3 | . . . . . . . . . . . . . 1 . . . 1 . . . . . . . . 1 . . . . Garrison Access 9 | . . . . . 1 . 1 . 1 . 1 . 1 . 1 . . . . . 1 . . 1 . . 1 . . . Total Hacks 165 | . 17 . . 5 1 . 9 . 2 . 3 . 5 . 4 . 12 40 10 2 1 . 18 3 . 14 3 . 8 8 Successful 86 | . 12 . . 3 1 . 4 . 2 . 1 . 4 . 2 . 10 12 1 2 1 . 10 1 . 7 2 . 6 5 Failed 78 | . 5 . . 2 . . 5 . . . 2 . 1 . 2 . 2 28 9 . . . 7 2 . 7 1 . 2 3 Catastrophic 9 | . . . . . . . 1 . . . . . . . . . . 4 . . . . 1 1 . . 1 . . 1 Database Lockouts 1 | . . . . . . . . . . . . . . . . . . . . . . . 1 . . . . . . . Manual 92 | . 15 . . 3 . . 8 . . . 2 . 1 . 2 . 5 27 . . . . 10 1 . 5 2 . 4 7 Terminals 141 | . 17 . . 5 . . 8 . . . 2 . 1 . 3 . 6 40 10 . . . 18 1 . 13 1 . 8 8 Fabricators . | . . . . . . . . . . . . . . . . . . . . . . . . . . . . . . . Repair Stations . | . . . . . . . . . . . . . . . . . . . . . . . . . . . . . . . Recycling Units . | . . . . . . . . . . . . . . . . . . . . . . . . . . . . . . . Scanalyzers 9 | . . . . . . . . . . . . . 2 . . . 6 . . . . . . . . 1 . . . . Garrison Access 13 | . . . . . 1 . 1 . 2 . 1 . 2 . 1 . . . . . 1 . . 2 . . 2 . . . Terminal Hacks 41 | . 9 . . 3 . . 2 . . . . . . . . . 1 8 1 2 . . 7 . . 3 . . 4 1 Record 4 | . . . . 1 . . . . . . . . . . . . . . 1 2 . . . . . . . . . . Part Schematic 4 | . 3 . . . . . . . . . . . . . . . . . . . . . 1 . . . . . . . Open Door 7 | . . . . . . . . . . . . . . . . . 1 3 . . . . 1 . . . . . 1 1 Level Access Points 1 | . . . . . . . . . . . . . . . . . . . . . . . . . . 1 . . . . Branch Access Points 3 | . 1 . . . . . . . . . . . . . . . . . . . . . 1 . . . . . 1 . Machine Index 3 | . . . . . . . . . . . . . . . . . . . . . . . 1 . . 1 . . 1 . Alert Level 1 | . . . . 1 . . . . . . . . . . . . . . . . . . . . . . . . . . Unreport Threat 11 | . 3 . . 1 . . 2 . . . . . . . . . . 4 . . . . . . . . . . 1 . Locate Traps 1 | . . . . . . . . . . . . . . . . . . . . . . . 1 . . . . . . . Zone Layout 6 | . 2 . . . . . . . . . . . . . . . . 1 . . . . 2 . . 1 . . . . Fabricator Hacks . | . . . . . . . . . . . . . . . . . . . . . . . . . . . . . . . Repair Station Hacks . | . . . . . . . . . . . . . . . . . . . . . . . . . . . . . . . Recycling Unit Hacks . | . . . . . . . . . . . . . . . . . . . . . . . . . . . . . . . Scanalyzer 9 | . . . . . . . . . . . . . 2 . . . 6 . . . . . . . . 1 . . . . Insert Component 4 | . . . . . . . . . . . . . 1 . . . 2 . . . . . . . . 1 . . . . Analyze 5 | . . . . . . . . . . . . . 1 . . . 4 . . . . . . . . . . . . . Garrison Access Hacks 11 | . . . . . 1 . 1 . 2 . 1 . 2 . 1 . . . . . 1 . . 1 . . 1 . . . Unlock Access 9 | . . . . . 1 . 1 . 1 . 1 . 1 . 1 . . . . . 1 . . 1 . . 1 . . . Coupler Status 2 | . . . . . . . . . 1 . . . 1 . . . . . . . . . . . . . . . . . Unauthorized Hacks 25 | . 3 . . . . . 1 . . . . . . . 1 . 3 4 . . . . 3 . . 3 1 . 2 4 Terminals 24 | . 3 . . . . . 1 . . . . . . . 1 . 3 4 . . . . 3 . . 3 . . 2 4 Track 9 | . 2 . . . . . . . . . . . . . . . 1 . . . . . 1 . . 1 . . 1 3 Botnet 14 | . 1 . . . . . 1 . . . . . . . 1 . 1 4 . . . . 2 . . 2 . . 1 1 Disrupt 1 | . . . . . . . . . . . . . . . . . 1 . . . . . . . . . . . . . Fabricators . | . . . . . . . . . . . . . . . . . . . . . . . . . . . . . . . Repair Stations . | . . . . . . . . . . . . . . . . . . . . . . . . . . . . . . . Recycling Units . | . . . . . . . . . . . . . . . . . . . . . . . . . . . . . . . Scanalyzers . | . . . . . . . . . . . . . . . . . . . . . . . . . . . . . . . Garrison Access 1 | . . . . . . . . . . . . . . . . . . . . . . . . . . . 1 . . . Reprogram 1 | . . . . . . . . . . . . . . . . . . . . . . . . . . . 1 . . . Data Cores Recovered 1 | . . . . . . . . . . . . . . . . . . 1 . . . . . . . . . . . . Used 1 | . . . . . . . . . . . . . . . . . . 1 . . . . . . . . . . . . Hacking Detections 48 | . 3 . . 1 1 . 2 . . . 1 . 3 . 3 . 2 11 2 . 1 . 3 2 . 5 2 . 2 4 Full Trace Events 1 | . . . . . . . . . . . . . . . . . . . . . . . 1 . . . . . . . Feedback Events . | . . . . . . . . . . . . . . . . . . . . . . . . . . . . . . . Feedback Blocked . | . . . . . . . . . . . . . . . . . . . . . . . . . . . . . . . Robot Schematics Acquired . | . . . . . . . . . . . . . . . . . . . . . . . . . . . . . . . Robots Built . | . . . . . . . . . . . . . . . . . . . . . . . . . . . . . . . Matter . | . . . . . . . . . . . . . . . . . . . . . . . . . . . . . . . Time . | . . . . . . . . . . . . . . . . . . . . . . . . . . . . . . . Total Robot Build Rating . | . . . . . . . . . . . . . . . . . . . . . . . . . . . . . . . Part Schematics Acquired 7 | . 3 . . . . . . . . . . . 1 . . . 2 . . . . . 1 . . . . . . . Parts Built . | . . . . . . . . . . . . . . . . . . . . . . . . . . . . . . . Matter . | . . . . . . . . . . . . . . . . . . . . . . . . . . . . . . . Time . | . . . . . . . . . . . . . . . . . . . . . . . . . . . . . . . Total Part Build Rating . | . . . . . . . . . . . . . . . . . . . . . . . . . . . . . . . Parts Repaired . | . . . . . . . . . . . . . . . . . . . . . . . . . . . . . . . Time . | . . . . . . . . . . . . . . . . . . . . . . . . . . . . . . . Parts Recycled . | . . . . . . . . . . . . . . . . . . . . . . . . . . . . . . . Recycled Matter . | . . . . . . . . . . . . . . . . . . . . . . . . . . . . . . . Retrieved Matter . | . . . . . . . . . . . . . . . . . . . . . . . . . . . . . . . Retrieved Components . | . . . . . . . . . . . . . . . . . . . . . . . . . . . . . . . Parts Scanalyzed 3 | . . . . . . . . . . . . . 1 . . . 2 . . . . . . . . . . . . . Part Schematics Acquired 3 | . . . . . . . . . . . . . 1 . . . 2 . . . . . . . . . . . . . Parts Damaged . | . . . . . . . . . . . . . . . . . . . . . . . . . . . . . . . Bothacking | -11 -10 -10 -10 -9 -8 -8 -8 -8 -7 -7 -7 -7 -6 -6 -5 -5 -4 -4 -4 -4 -4 -4 -3 -3 -3 -3 -2 -2 -1 -1 ------------ Run | Scr Mat Min Exi Min Mat Gar Sto Gar Fac Gar Fac Gar Fac Gar Fac Gar Fac Ext Cet Arc Hub Gar Res Qua Gar Sec Res Gar Acc Com Used RIF Installer 9 | . . . . . . 1 . 1 . 1 . 1 . 1 . 1 . . . . . 1 . . 1 . . 1 . . Command Fork 3 | . . . . . . . . 1 . . . 1 . 1 . . . . . . . . . . . . . . . . Threat Obfuscator 3 | . . . . . . . . . . 1 . . . . . . . . . . . 1 . . . . . 1 . . Zone Cloak 1 | . . . . . . . . . . . . . . . . 1 . . . . . . . . . . . . . . Autoassimilate 1 | . . . . . . . . . . . . . . . . . . . . . . . . . 1 . . . . . Robots Hacked 44 | . . . . . . . . . . . . . . . . . . 1 . . . 2 10 . 4 8 . 3 2 14 Non-combat 7 | . . . . . . . . . . . . . . . . . . . . . . . 1 . . 2 . . . 4 Combat 37 | . . . . . . . . . . . . . . . . . . 1 . . . 2 9 . 4 6 . 3 2 10 Autoassimilated 4 | . . . . . . . . . . . . . . . . . . . . . . . . . 1 . . . . 3 Robot Hacks Applied 43 | . . . . . . . . . . . . . . . . . . 1 . . . 2 10 . 4 9 . 3 2 12 purge_threat 1 | . . . . . . . . . . . . . . . . . . . . . . . 1 . . . . . . . map_route 2 | . . . . . . . . . . . . . . . . . . . . . . . . . . . . . . 2 disable_scanner 1 | . . . . . . . . . . . . . . . . . . . . . . . . . . 1 . . . . link_fov 1 | . . . . . . . . . . . . . . . . . . . . . . . . . . 1 . . . . scatter_targeting 1 | . . . . . . . . . . . . . . . . . . . . . . . 1 . . . . . . . disrupt_area 1 | . . . . . . . . . . . . . . . . . . . . . . . . . . . . 1 . . wipe_record 1 | . . . . . . . . . . . . . . . . . . . . . . . . . . 1 . . . . overwrite_iff 11 | . . . . . . . . . . . . . . . . . . 1 . . . 2 1 . 4 1 . . . 2 streamctrl_high 2 | . . . . . . . . . . . . . . . . . . . . . . . 1 . . 1 . . . . formatsys_high 22 | . . . . . . . . . . . . . . . . . . . . . . . 6 . . 4 . 2 2 8 Relay Couplers Released 22 | . . . . . . 5 . . . . . . . . . . . . . . . 4 . . 8 . . 5 . . Machine Destruction 22 | . . . . . . 5 . . . . . . . . . . . . . . . 4 . . 8 . . 5 . . Attached 20 | . . . . . . . . . . . . . . . . . 1 . . . . 1 5 . 1 5 . 1 1 5 Robots Rewired 20 | . . . . . . . . . . 3 . . . . . . . 17 . . . . . . . . . . . . Allies Hacked 1 | . . . . . . . . . . . . . . . . . . . . . . . . . . . . . . 1 Hacks Repelled . | . . . . . . . . . . . . . . . . . . . . . . . . . . . . . . . Allies | -11 -10 -10 -10 -9 -8 -8 -8 -8 -7 -7 -7 -7 -6 -6 -5 -5 -4 -4 -4 -4 -4 -4 -3 -3 -3 -3 -2 -2 -1 -1 -------- Run | Scr Mat Min Exi Min Mat Gar Sto Gar Fac Gar Fac Gar Fac Gar Fac Gar Fac Ext Cet Arc Hub Gar Res Qua Gar Sec Res Gar Acc Com Total Allies 86 | . . 3 . 1 . . . . . 3 . . . . . . . 21 . . . 4 12 . 7 9 . 4 4 18 Largest Group 12 | . . 3 3 4 3 3 . . . 3 . . . . . . . 12 8 2 . 4 7 . 4 5 . 4 5 4 Highest-Rated Group 499 | . . 40 40 71 55 55 . . . 63 . . . . . . . 499 349 90 . 48 296 . 170 252 . 232 178 153 Highest-Rated Ally 64 | . . 16 16 31 31 31 . . . 21 . . . . . . . 49 49 46 . 12 64 . 47 64 . 58 58 58 Total Orders 18 | . . . . . . . . . . . . . . . . . . 15 2 . . . . . . . . . . 1 STAY 10 | . . . . . . . . . . . . . . . . . . 8 1 . . . . . . . . . . 1 FOLLOW 8 | . . . . . . . . . . . . . . . . . . 7 1 . . . . . . . . . . . Ally Attacks 457 | . . . . 12 4 10 . . . 17 . . . . . . . 104 61 3 . 17 101 . 12 27 . 24 27 38 Total Damage 10705 | . . . . 134 62 141 . . . 464 . . . . . . . 2492 1315 93 . 186 2266 . 342 925 . 722 686 877 Kills 71 | . . . . 3 1 1 . . . 3 . . . . . . . 16 11 . . 1 16 . 1 7 . 4 3 4 Allies Corrupted 2 | . . . . . . . . . . . . . . . . . . . . . . . 1 . . 1 . . . . Allies Melted . | . . . . . . . . . . . . . . . . . . . . . . . . . . . . . . . Intel | -11 -10 -10 -10 -9 -8 -8 -8 -8 -7 -7 -7 -7 -6 -6 -5 -5 -4 -4 -4 -4 -4 -4 -3 -3 -3 -3 -2 -2 -1 -1 ------- Run | Scr Mat Min Exi Min Mat Gar Sto Gar Fac Gar Fac Gar Fac Gar Fac Gar Fac Ext Cet Arc Hub Gar Res Qua Gar Sec Res Gar Acc Com Robot Analysis Total . | . . . . . . . . . . . . . . . . . . . . . . . . . . . . . . . Derelict Logs Recovered 2 | . . 1 . 1 . . . . . . . . . . . . . . . . . . . . . . . . . . Drone Launches . | . . . . . . . . . . . . . . . . . . . . . . . . . . . . . . . Drone Recoveries . | . . . . . . . . . . . . . . . . . . . . . . . . . . . . . . . Exploration | -11 -10 -10 -10 -9 -8 -8 -8 -8 -7 -7 -7 -7 -6 -6 -5 -5 -4 -4 -4 -4 -4 -4 -3 -3 -3 -3 -2 -2 -1 -1 ------------- Run | Scr Mat Min Exi Min Mat Gar Sto Gar Fac Gar Fac Gar Fac Gar Fac Gar Fac Ext Cet Arc Hub Gar Res Qua Gar Sec Res Gar Acc Com Turns Passed 32366 | 83 591 1313 777 445 189 1290 573 416 61 1736 218 494 609 1241 728 932 787 2328 550 723 143 857 1670 525 6023 668 251 2718 1373 2054 Spaces Moved 11645 | 58 351 646 427 210 75 454 214 167 29 577 96 156 261 396 302 360 342 920 204 263 48 305 682 217 1177 337 168 957 420 826 Core 45 | 5 . . . . . . . . . 1 . . . . . . . . . . . . . . . . . . . 39 Treads 6602 | . 141 234 . . . 214 214 167 29 576 96 156 261 396 302 360 342 622 56 263 48 305 682 217 366 . . . . 555 Legs 4928 | 53 210 412 427 210 75 240 . . . . . . . . . . . 298 148 . . . . . 757 337 168 957 420 216 Wheels 54 | . . . . . . . . . . . . . . . . . . . . . . . . . 54 . . . . . Hover 16 | . . . . . . . . . . . . . . . . . . . . . . . . . . . . . . 16 Flight . | . . . . . . . . . . . . . . . . . . . . . . . . . . . . . . . Fastest Speed 50 | 50 120 160 180 180 180 180 200 200 200 200 220 200 200 220 200 180 180 180 210 220 220 180 160 180 150 130 130 130 142 50 Average Speed 181 | 119 136 178 180 180 236 198 200 200 200 230 220 210 203 220 217 199 180 204 212 220 220 210 177 180 167 131 130 136 143 166 Slowest Speed 2100 | 150 160 240 180 180 240 300 200 200 200 2100 220 220 220 220 240 200 180 240 220 270 220 240 180 180 330 180 130 144 144 290 Overloaded Moves . | . . . . . . . . . . . . . . . . . . . . . . . . . . . . . . . Propulsion Burnouts . | . . . . . . . . . . . . . . . . . . . . . . . . . . . . . . . Robots Hopped . | . . . . . . . . . . . . . . . . . . . . . . . . . . . . . . . Cave-ins Triggered 2 | . . . . . . . . . . . . . . . . . . . . . . . 1 . . . . . 1 . Exploration Rate (%) 39 | 4 53 99 81 46 7 56 42 40 1 58 3 42 7 43 9 55 12 82 80 83 3 39 23 24 88 23 4 71 12 24 Regions Visited 30 Branch Regions 11 Pre-discovered Areas . | . . . . . . . . . . . . . . . . . . . . . . . . . . . . . . . Known Exits Taken 13 | . 1 . . . 1 . 1 . 1 . 1 . 1 . 1 . . . . . 1 . 1 1 . 1 1 . 1 . Unknown Exits Taken 8 | 1 . 1 1 1 . . . . . . . . . . . . 1 1 1 1 . . . . . . . . . . Scrap Searched 2 | . . 1 . 1 . . . . . . . . . . . . . . . . . . . . . . . . . . Spaces Dug 190 | . . . . . . . 13 3 . . 1 11 . 22 2 . 8 . . . . . 53 21 2 21 1 . 21 11 Terrain Destroyed 1191 | . . . . . . 25 40 13 . 79 1 56 . 43 2 35 15 141 48 8 . 68 300 95 137 21 1 . 29 34 Melee 61 | . . . . . . . . . . . . . . . . . . . . . . . 7 . 2 20 1 . 20 11 Projectile 156 | . . . . . . 1 18 . . . 1 3 . 4 2 1 10 23 6 8 . 6 26 3 11 1 . . 9 23 AOE 974 | . . . . . . 24 22 13 . 79 . 53 . 39 . 34 5 118 42 . . 62 267 92 124 . . . . . Terrain Rammed . | . . . . . . . . . . . . . . . . . . . . . . . . . . . . . . . Walls Destroyed . | . . . . . . . . . . . . . . . . . . . . . . . . . . . . . . . Machines Disabled . | . . . . . . . . . . . . . . . . . . . . . . . . . . . . . . . Actions | -11 -10 -10 -10 -9 -8 -8 -8 -8 -7 -7 -7 -7 -6 -6 -5 -5 -4 -4 -4 -4 -4 -4 -3 -3 -3 -3 -2 -2 -1 -1 --------- Run | Scr Mat Min Exi Min Mat Gar Sto Gar Fac Gar Fac Gar Fac Gar Fac Gar Fac Ext Cet Arc Hub Gar Res Qua Gar Sec Res Gar Acc Com Total 21083 | 69 423 765 439 269 86 672 317 224 32 821 102 259 330 687 360 527 457 1247 288 360 81 452 1015 298 5092 478 196 2279 1124 1334 Wait 6481 | . 6 77 . 52 . 30 41 21 1 33 1 49 17 199 3 68 39 45 3 35 27 50 93 13 3681 32 17 1110 606 132 Move 11607 | 57 350 645 426 209 74 452 214 165 28 575 95 154 260 394 301 358 341 919 203 262 47 303 681 216 1175 336 167 955 419 826 Hop . | . . . . . . . . . . . . . . . . . . . . . . . . . . . . . . . Pick Up 485 | 6 12 11 7 1 6 40 13 4 . 28 2 4 20 6 18 21 11 42 16 13 . 11 34 9 35 8 4 35 14 54 Fast Attach 129 | 6 10 2 . . 3 2 3 . . 9 . . 2 3 5 6 3 15 4 1 . 1 2 1 19 2 . 11 3 16 Attach 255 | . 2 1 . . 2 17 1 1 2 14 . 4 4 12 3 9 4 13 9 3 . 8 22 14 27 8 2 21 8 44 Detach 33 | . . . . . . 1 . . . 2 . . . 1 1 3 1 . . . . . 1 5 7 . . 1 1 9 Swap 458 | . 2 2 1 1 . 15 9 9 1 25 1 10 6 15 2 13 13 53 12 5 5 15 71 9 15 32 5 25 26 60 Drop 436 | . 17 5 5 1 1 15 14 3 . 23 2 1 14 8 17 17 11 41 20 13 . 7 28 2 34 5 . 34 11 87 Fire 865 | . 16 22 . 4 . 94 22 13 . 87 1 34 7 40 7 29 34 61 21 9 . 39 68 12 74 24 . 49 14 84 Melee 190 | . 8 . . . . . . . . . . . . . . . . 37 . 19 . 8 8 17 8 28 1 17 22 17 Ram . | . . . . . . . . . . . . . . . . . . . . . . . . . . . . . . . Kick 3 | . . . . 1 . . . . . . . . . . . . . . . . . . . . . 1 . 1 . . Crush 12 | . . . . . . . . . . . . . . 1 3 . . . . . 2 . 3 . . . . . . 3 Escape Stasis 97 | . . . . . . 6 . 8 . 2 . 3 . 8 . 3 . 21 . . . 10 . . 16 . . 20 . . Rewire 32 | . . . . . . . . . . 23 . . . . . . . . . . . . 4 . 1 2 . . . 2 Trap . | . . . . . . . . . . . . . . . . . . . . . . . . . . . . . . . Miscellaneous . | . . . . . . . . . . . . . . . . . . . . . . . . . . . . . . . Route ------- -11/Scrapyard -10/Materials (discovered 3 exits: [*Mat] / *Min x2) -10/Mines (discovered 3 exits: [*Mat x2] / [*Exi]) -10/Exiles (discovered 2 exits: *Min x2) -9/Mines -8/Materials -8/Garrison (discovered 2 exits: *Sto x2) -8/Storage -8/Garrison -7/Factory -7/Garrison (discovered 2 exits: *Fac x2) -7/Factory -7/Garrison -6/Factory (discovered 2 exits: [*Low] / Gar) -6/Garrison -5/Factory (discovered 2 exits: [*Upp] / Gar) -5/Garrison (discovered 2 exits: *Fac x2) -4/Factory -4/Extension (discovered 3 exits: *Res x2 / *Cet) -4/Cetus (discovered 2 exits: *Res / *Arc) -4/Archives (discovered 3 exits: *Res / *Hub x2) -4/Hub_04(d) -4/Garrison -3/Research (discovered 2 exits: *Qua x2) -3/Quarantine -3/Garrison (discovered 3 exits: *Sec x3) -3/Section 7 -2/Research -2/Garrison (discovered 2 exits: *Acc x2) -1/Access -1/Command 0b10 Command History --------- Turn | Location | Event 8 | -11/Scrapyard | Discovered new exit (range 15) 84 | -11/Scrapyard | Entered Materials 122 | -10/Materials | Identified exit to Mines 303 | -10/Materials | Build established: Mutant 457 | -10/Materials | Discovered new exit (range 8) 675 | -10/Materials | Entered Mines 704 | -10/Mines | Discovered new exit (range 14) 859 | -10/Mines | Learned Materials terminal intel 926 | -10/Mines | Core integrity fell below 50% 1230 | -10/Mines | Discovered new exit (range 9) 1302 | -10/Mines | Deemed a non-threat by the Exiles lab entrance 1304 | -10/Mines | Discovered new exit (range 5) 1484 | -10/Mines | Found a hidden stash of uninstalled traps 1768 | -10/Mines | Assisted by bots powering up and referring to "LRC-V3" 1988 | -10/Mines | Entered Exiles 1988 | -10/Exiles | Accompanied by 3 allies 2021 | -10/Exiles | Discovered new exit (range 15) 2078 | -10/Exiles | Met 8R-AWN 2100 | -10/Exiles | Met EX-HEX 2208 | -10/Exiles | Met EX-DEC 2236 | -10/Exiles | Visited The Gauntlet 2495 | -10/Exiles | Discovered new exit (range 14) 2635 | -10/Exiles | Met EX-BIN 2765 | -10/Exiles | Entered Mines 2765 | -9/Mines | Accompanied by 3 allies 3086 | -9/Mines | Learned Materials stockpile data 3103 | -9/Mines | Discovered new exit (range 11) 3141 | -9/Mines | Met a Derelict testing a Signal Generator 3150 | -9/Mines | Found Signal Generator 3210 | -9/Mines | Entered Materials 3210 | -8/Materials | Accompanied by 3 allies 3210 | -8/Materials | Evolved 4 slots: Utility x4 3212 | -8/Materials | Loaded intel: 12 terminal locations 3363 | -8/Materials | Identified exit to Garrison 3399 | -8/Materials | Entered Garrison 3399 | -8/Garrison | Accompanied by 3 allies 3531 | -8/Garrison | Build established: Hauler-Mutant 3648 | -8/Garrison | Destroyed 7 combat bots 3655 | -8/Garrison | Lost 6 parts (2p2n2w) 3704 | -8/Garrison | Triggered checkpoint 3814 | -8/Garrison | Discovered new exit (range 15) 3990 | -8/Garrison | Triggered checkpoint 3999 | -8/Garrison | Core integrity fell below 50% 4033 | -8/Garrison | Lost 3 parts (2u1w) 4081 | -8/Garrison | Discovered new exit (range 12) 4112 | -8/Garrison | Installed Relay Interface Framework 4222 | -8/Garrison | Triggered checkpoint 4259 | -8/Garrison | Garrison Relay disabled 4558 | -8/Garrison | Triggered checkpoint 4689 | -8/Garrison | Entered Storage 5262 | -8/Storage | Identified exit to Garrison 5262 | -8/Storage | Entered Garrison 5406 | -8/Garrison | Triggered checkpoint 5548 | -8/Garrison | Discovered new exit (range 9) 5582 | -8/Garrison | Expanded RIF knowledge: Command Fork 5678 | -8/Garrison | Entered Factory 5678 | -7/Factory | Evolved 2 slots: Utility x2 5737 | -7/Factory | Identified exit to Garrison 5739 | -7/Factory | Entered Garrison 6182 | -7/Garrison | Triggered checkpoint 6358 | -7/Garrison | Destroyed 7 combat bots 6361 | -7/Garrison | Lost 13 parts (2p4n2u5w) 6638 | -7/Garrison | Triggered checkpoint 6930 | -7/Garrison | Triggered checkpoint 6984 | -7/Garrison | Triggered checkpoint 6989 | -7/Garrison | Build established: Scavenger-Mutant 7018 | -7/Garrison | Discovered new exit (range 8) 7264 | -7/Garrison | Core integrity fell below 50% 7331 | -7/Garrison | Destroyed 8 combat bots 7340 | -7/Garrison | Discovered new exit (range 15) 7400 | -7/Garrison | Expanded RIF knowledge: Threat Obfuscation 7475 | -7/Garrison | Entered Factory 7690 | -7/Factory | Identified exit to Garrison 7693 | -7/Factory | Entered Garrison 7856 | -7/Garrison | Triggered checkpoint 7894 | -7/Garrison | Triggered checkpoint 7924 | -7/Garrison | Destroyed 7 combat bots 7958 | -7/Garrison | Triggered checkpoint 8010 | -7/Garrison | Lost 3 parts (2n1u) 8020 | -7/Garrison | Core integrity fell below 20% 8112 | -7/Garrison | Discovered new exit (range 15) 8158 | -7/Garrison | Expanded RIF knowledge: Command Fork 8187 | -7/Garrison | Entered Factory 8187 | -6/Factory | Evolved 2 slots: Utility x2 8271 | -6/Factory | Build established: Hauler-Mutant 8404 | -6/Factory | Discovered new exit (range 8) 8794 | -6/Factory | Identified exit to Garrison 8796 | -6/Factory | Entered Garrison 9074 | -6/Garrison | Build established: Scavenger-Mutant 9447 | -6/Garrison | Lost 8 parts (1n3u4w) 9495 | -6/Garrison | Spotted B-75 Beast 9537 | -6/Garrison | Spotted B-75 Beast 9583 | -6/Garrison | Build established: Hauler-Mutant 9644 | -6/Garrison | Triggered checkpoint 9834 | -6/Garrison | Triggered checkpoint 9870 | -6/Garrison | Lost 3 parts (1p2u) 9889 | -6/Garrison | Discovered new exit (range 8) 9919 | -6/Garrison | Expanded RIF knowledge: Command Fork 10037 | -6/Garrison | Entered Factory 10037 | -5/Factory | Evolved 2 slots: Weapon x2 10364 | -5/Factory | Build established: Hauler-Tank 10575 | -5/Factory | Discovered new exit (range 5) 10739 | -5/Factory | Identified exit to Garrison 10765 | -5/Factory | Entered Garrison 10870 | -5/Garrison | Spotted B-75 Beast 10947 | -5/Garrison | Triggered checkpoint 10964 | -5/Garrison | Triggered checkpoint 11007 | -5/Garrison | Destroyed B-75 Beast 11295 | -5/Garrison | Discovered new exit (range 9) 11549 | -5/Garrison | Discovered new exit (range 10) 11587 | -5/Garrison | Expanded RIF knowledge: Zone Cloak 11697 | -5/Garrison | Entered Factory 11697 | -4/Factory | Evolved 2 slots: Propulsion x1, Utility x1 12473 | -4/Factory | Discovered new exit (range 6) 12484 | -4/Factory | Entered Extension 12741 | -4/Extension | Rescued a captive Derelict 12792 | -4/Extension | Rescued a captive Derelict 12992 | -4/Extension | Energy Cycler disabled 13217 | -4/Extension | Build established: Botlord-Gunner 13527 | -4/Extension | Spotted B-86 Titan 13552 | -4/Extension | Destroyed B-86 Titan 13659 | -4/Extension | Spotted B-86 Titan 13684 | -4/Extension | Disrupted transfer network 13691 | -4/Extension | Destroyed B-86 Titan 13706 | -4/Extension | Discovered new exit (range 15) 13759 | -4/Extension | Build established: Botlord-Mutant 13783 | -4/Extension | Destroyed 8 combat bots 13813 | -4/Extension | Lost 3 parts (1n2w) 13947 | -4/Extension | Discovered new exit (range 15) 13949 | -4/Extension | Discovered new exit (range 15) 14785 | -4/Extension | Build established: Botlord-Tank 14812 | -4/Extension | Entered Cetus 14812 | -4/Cetus | Accompanied by 8 allies 14842 | -4/Cetus | Spotted Cetus Guard 14854 | -4/Cetus | Spotted Cetus Guard 14862 | -4/Cetus | Destroyed Cetus Guard 14866 | -4/Cetus | Allies destroyed Cetus Guard 15131 | -4/Cetus | Discovered new exit (range 15) 15190 | -4/Cetus | Spotted Cetus Guard 15190 | -4/Cetus | Spotted Cetus Guard 15194 | -4/Cetus | Spotted Cetus Guard 15195 | -4/Cetus | Spotted Cetus Guard 15202 | -4/Cetus | Destroyed Cetus Guard 15203 | -4/Cetus | Destroyed Cetus Guard 15206 | -4/Cetus | Destroyed Cetus Guard 15206 | -4/Cetus | Allies destroyed Cetus Guard 15236 | -4/Cetus | Discovered new exit (range 16) 15258 | -4/Cetus | Met Revision 17 15362 | -4/Cetus | Entered Archives 15362 | -4/Archives | Accompanied by 2 allies 15545 | -4/Archives | Discovered new exit (range 16) 15578 | -4/Archives | Discovered new exit (range 15) 15613 | -4/Archives | Discovered new exit (range 16) 15669 | -4/Archives | Unable to access archive contents 15691 | -4/Archives | Unable to access archive contents 16085 | -4/Archives | Entered Hub_04(d) 16123 | -4/Hub_04(d) | Identified exit to Garrison 16228 | -4/Hub_04(d) | Entered Garrison 16278 | -4/Garrison | Triggered checkpoint 16369 | -4/Garrison | Garrison Relay disabled 16412 | -4/Garrison | Build established: Botlord-Gunner 16496 | -4/Garrison | Spotted B-86 Titan 16522 | -4/Garrison | Triggered checkpoint 16522 | -4/Garrison | Triggered checkpoint 16611 | -4/Garrison | Lost 3 parts (1n1u1w) 16903 | -4/Garrison | Triggered checkpoint 16922 | -4/Garrison | Triggered checkpoint 17001 | -4/Garrison | Discovered new exit (range 14) 17042 | -4/Garrison | Expanded RIF knowledge: Threat Obfuscation 17085 | -4/Garrison | Entered Research 17085 | -3/Research | Evolved 2 slots: Propulsion x1, Utility x1 17304 | -3/Research | Found Fusion Bomb Launcher 17307 | -3/Research | Found Fusion Bomb Launcher 17310 | -3/Research | Found Fusion Bomb Launcher 17313 | -3/Research | Found Fusion Bomb Launcher 17316 | -3/Research | Found Fusion Bomb Launcher 17318 | -3/Research | Found Fusion Bomb Launcher 17322 | -3/Research | Found Fusion Bomb Launcher 17577 | -3/Research | Identified exit to Quarantine 17577 | -3/Research | Central database locked down 17697 | -3/Research | Build established: Botlord-Mutant 17707 | -3/Research | Lost 3 parts (3w) 17771 | -3/Research | Crushed by falling debris 17802 | -3/Research | Lost 3 parts (1u2w) 18755 | -3/Research | Entered Quarantine 18813 | -3/Quarantine | Found Alien Slashing Weapon 18914 | -3/Quarantine | Identified Sigix Broadsword 18920 | -3/Quarantine | System corruption reached 10% 18948 | -3/Quarantine | Garrison activated, responded to threat 19188 | -3/Quarantine | Lost 5 parts (1n3u1w) 19224 | -3/Quarantine | Identified exit to Garrison 19280 | -3/Quarantine | Entered Garrison 19786 | -3/Garrison | Build established: Scavenger-Mutant 22616 | -3/Garrison | Triggered checkpoint 22634 | -3/Garrison | Core integrity fell below 50% 22787 | -3/Garrison | Garrison Relay disabled 22888 | -3/Garrison | Lost 3 parts (1p2n) 23052 | -3/Garrison | Spotted B-86 Titan 23230 | -3/Garrison | Triggered checkpoint 23230 | -3/Garrison | Triggered checkpoint 23236 | -3/Garrison | Triggered checkpoint 23307 | -3/Garrison | Destroyed B-86 Titan 23338 | -3/Garrison | Lost 15 parts (2p3n4u6w) 23757 | -3/Garrison | Discovered new exit (range 8) 23851 | -3/Garrison | Build established: Botlord-Gunner 23861 | -3/Garrison | Core integrity fell below 20% 23938 | -3/Garrison | Discovered new exit (range 9) 23965 | -3/Garrison | Expanded RIF knowledge: Autoassimilate 24394 | -3/Garrison | Triggered checkpoint 24728 | -3/Garrison | Discovered new exit (range 10) 24794 | -3/Garrison | Triggered checkpoint 24833 | -3/Garrison | Garrison Relay disabled 24841 | -3/Garrison | Lost 4 parts (1p2u1w) 25303 | -3/Garrison | Entered Section 7 25340 | -3/Section 7 | Identified exit to Research 25725 | -3/Section 7 | Lost 6 parts (1n1u4w) 25842 | -3/Section 7 | Found Alien Artifact 25896 | -3/Section 7 | Identified Integrated Dissipator 25896 | -3/Section 7 | Installed Integrated Dissipator, increased core heat dissipation (+20) 25971 | -3/Section 7 | Entered Research 25971 | -2/Research | Evolved 2 slots: Power x1, Utility x1 26036 | -2/Research | Build established: Botlord-Mutant 26134 | -2/Research | Identified exit to Garrison 26222 | -2/Research | Entered Garrison 26984 | -2/Garrison | Build established: Botlord-Gladiator 27312 | -2/Garrison | Triggered checkpoint 27381 | -2/Garrison | Garrison Relay disabled 27480 | -2/Garrison | Triggered checkpoint 27547 | -2/Garrison | Build established: Botlord-Gunner 27576 | -2/Garrison | Spotted B-90 Cyclops 27892 | -2/Garrison | Build established: Botlord-Mutant 27944 | -2/Garrison | Triggered checkpoint 28028 | -2/Garrison | Lost 3 parts (1p1u1w) 28168 | -2/Garrison | Lost 5 parts (1p2n2w) 28247 | -2/Garrison | Destroyed B-90 Cyclops 28318 | -2/Garrison | Triggered checkpoint 28379 | -2/Garrison | Discovered new exit (range 12) 28542 | -2/Garrison | Discovered new exit (range 9) 28562 | -2/Garrison | Expanded RIF knowledge: Threat Obfuscation 28940 | -2/Garrison | Entered Access 28940 | -1/Access | Accompanied by 1 ally 28940 | -1/Access | Evolved 2 slots: Utility x2 29232 | -1/Access | Spotted B-99 Colossus 29264 | -1/Access | Identified exit to Command 29591 | -1/Access | Crushed by falling debris 30313 | -1/Access | Entered Command 30836 | -1/Command | Discovered new exit (range 65) 31523 | -1/Command | Found Hvy. Reactive Plating 31568 | -1/Command | Found Hvy. Reactive Plating 31574 | -1/Command | Found Hvy. Reactive Plating 31577 | -1/Command | Found Hvy. Reactive Plating 31759 | -1/Command | Spotted M Guard 31761 | -1/Command | Spotted Combat Programmer 31761 | -1/Command | Spotted M Guard 31766 | -1/Command | Spotted Combat Programmer 31772 | -1/Command | System corruption reached 10% 31789 | -1/Command | Destroyed Combat Programmer 31810 | -1/Command | Destroyed Combat Programmer 31828 | -1/Command | Destroyed M Guard 31830 | -1/Command | Lost 9 parts (5u4w) 31840 | -1/Command | Destroyed M Guard 31840 | -1/Command | All MAIN.C guards destroyed 32243 | -1/Command | Met MAIN.C 32340 | -1/Command | Build established: Scavenger-Mutant 32367 | -1/Command | Interfaced with 0b10 Conduit 32367 | *** | Assimilated 0b10! Last Messages --------------- 32326_ Activated siege mode. 32327_ System corrupted: Enh. Nova Cannon targeting data glitched. 32327_ P-80 Master destroyed. 32329_ P-80 Master suffers critical hit. 32329_ P-80 Master destroyed. 32331_ System corrupted: Enh. Nova Cannon targeting data glitched. 32331_ P-80 Master suffers critical hit. 32331_ Destroyed Gamma Rifle. 32332_ Ended siege mode. 32336_ Enh. Nova Cannon destroyed. 32341_ Adv. Targeting Computer destroyed. 32343_ Imp. Antigrav System destroyed. 32343_ Lgt. Particle Reactor destroyed. 32346_ MR=V9SWS6VK7MNHXC3JKJ1FD 32346_ Imp. Antigrav System destroyed. 32352_ Acquired Adv. Heavy Treads. 32364_ System corrupted: Heat flow error (+265). 32367_ Interfacing with system... 32367_ Overriding active MAIN.C lock. [Achievement: MAIN.CPP] Map ----- +----------------------------------------------------+ | ################################################## | | ###### ########################################### | | ###### ########################################### | | #### ########################################### | | #### ########################################### | | #### ########################################### | | #### ########################################### | | # ########################################### | | ################################################ | | ################################################## | | ################################################## | | ################################################## | | ################################################## | | ################################################## | | #####""""""" """" ############### | | #####"" "" ############### | | #####""""" "" ############### | | #####""""""""""" + | | #####" " """ + | | #####"" """""" ; | | #####"" """""" ############### | | ##### " """""" ############### | | ##### " "" ############### | | ##### " " ""############### | | #####""""""""" """""""############### | | "" #####"" @"""""""""############### | | """ ##### """""""""""############### | | """ ##### " " " " ############### | | "" ##### " " " " ############### | | """ " " " """" " ############### | | """ """ " " """" ############### | | """ " " " " ############### | | #######+###### """""""""" " ############### | | ### ##### " """ " """"""""############### | | ### #### """ " " " ############### | | ### ######################################### | | ### ######################################### | | ### ######################################### | | ### ######################################### | | ################################################## | | ################################################## | | ################################################## | | ################################################## | | ################################################## | | ################################################## | | ################################################## | | ################################################## | | ################################################## | | ################################# | | T################################# | +----------------------------------------------------+ Best States ------------- Heat Dissipation 107 Coolant Potential 100 Energy Generation 57 Energy Capacity 515 Matter Stores 300 Matter Capacity 300 Sight Range 16 Robot Scan Range 16 Terrain Scan Range 16 Terrain Scan Density 110 Jamming Range 16 Power Amplification 30 EM Shielding 2 Armor Coverage 4050 Resistance: KI 40 Resistance: TH 15 Resistance: EM 25 Core Shielding 20 Weapon Shielding 66 Weapon Cycling 25 Melee Speed Boost 20 Phase Shifting 10 Evasion (%) 50 Targeting Accuracy 8 Melee Accuracy 8 Target Analysis 8 Core Analysis 10 Armor Integrity Analysis 66 Recoil Reduction 4 Particle Charging 20 Salvage Targeting 3 Offensive Hacking 58 Defensive Hacking 24 Relay Coupler Types 62 Relay Coupler Value 4 Item Schematics ----------------- Hcp. Storage Unit | -10/Materials | Hacked Signal Interpreter | -10/Materials | Hacked Lrg. Storage Unit | -10/Materials | Hacked Adv. Melee Analysis Suite | -6/Factory | Scanalyzed Adv. System Shield | -4/Factory | Scanalyzed Imp. Terrain Scanner | -4/Factory | Scanalyzed Exp. Terrain Scanner | -3/Research | Hacked Robot Schematics ------------------ None Fabricated ------------ Nothing Alien Tech Used ----------------- Sigix Broadsword Integrated Dissipator Achievements -------------- MAIN.CPP Short-term Sacrifices Challenges ------------ None Game ------ Seed DisruptorStealthSource Manual? 0 Play Time 05:36:00 Cumulative 118.6 hours Start 2021.01.04 @ 04:54:42 End 2021.01.05 @ 07:45:00 Sessions 6 Manual Loads 0 Difficulty Rogue Special Mode None Game No. 28 Rogue 28 Adventurer 0 Explorer 0 Win Type 4 Total 9 Types 5/1/1/1/1/0/0/0/0 Lore% 44 Gallery% 68 Achievement% 55 Wizard Run 0 Options --------- ASCII 0 Keyboard 0 Movement Numpad Keybinds 0 Fullscreen 1 Font 18/TerminusBold Map View 76x50 Tactical HUD 1 Map Filters NONE Filters NONE Steam 1 RUN: 9fdafd4f-7917-4e3a-a027-4488f59a0f21